{"text_format":"1","workbook":"xlsx","n_sheets":5,"sheets":["Application Instructions","Application Terms & Conditions","Incentive Application","Retrofit","ADR_#4"],"not_rendered":{"charts":0,"images":5,"macros":1,"external_links":0,"defined_names":13,"comments":0,"pivot_tables":0},"unopened":[],"bounds":{"document_bytes":16777216,"sheet_cells":100000,"rows_first":2000,"rows_last":500,"rows_between":2000,"halvings":0,"cell_chars":16384,"cell_head_chars":4096},"cells_cut":0,"cells_raw":0,"read":"whole","date_system":"1900"}

{"sheet":"Application Instructions","index":0,"n_rows":0,"n_cols":0,"rows_kept":0,"cut":false,"hidden":false,"merged":[]}

{"sheet":"Application Terms & Conditions","index":1,"n_rows":0,"n_cols":0,"rows_kept":0,"cut":false,"hidden":false,"merged":[]}

{"sheet":"Incentive Application","index":2,"n_rows":64,"n_cols":58,"rows_kept":64,"cut":false,"hidden":false,"merged":[[25,28,25,30],[25,9,25,11],[41,32,41,42],[33,36,33,57],[41,0,41,31],[27,0,27,57],[31,27,31,57],[43,0,43,26],[33,0,33,16],[33,17,33,35],[29,48,29,57],[29,0,29,26],[11,0,11,26],[61,47,61,52],[65,0,65,15],[63,16,63,30],[51,0,51,35],[63,39,63,52],[19,23,19,33],[45,0,45,26],[43,45,43,52],[41,43,41,52],[45,38,45,52],[45,27,45,37],[43,27,43,40],[29,42,29,47],[43,41,43,44],[25,18,25,20],[23,41,23,52],[17,27,17,40],[0,9,0,29],[48,38,48,52],[13,0,13,26],[13,27,13,40],[13,41,13,44],[7,0,7,26],[7,27,7,52],[21,27,21,40],[15,0,15,26],[15,27,15,40],[15,41,15,44],[9,0,9,26],[11,41,11,52],[11,27,11,40],[59,0,59,22],[59,23,59,36],[13,45,13,52],[9,27,9,52],[31,0,31,26],[39,36,39,39],[39,23,39,33],[39,45,39,51],[29,27,29,41],[23,0,23,26],[17,0,17,26],[21,0,21,26],[21,41,21,52],[17,45,17,52],[17,41,17,44],[53,0,53,22],[1,9,1,45],[58,39,58,44],[58,46,58,52],[50,39,50,42],[50,45,50,52],[52,39,52,42],[52,45,52,52],[55,39,55,41],[55,43,55,45],[55,47,55,50],[53,23,53,36],[55,0,55,22],[55,23,55,36],[57,0,57,22],[57,23,57,36],[23,27,23,40]]}
[]
[null,null,null,null,null,null,null,null,"®","Pacific Gas and Electric Company\n Customized Retrofit and Automated Demand Response Incentive Program"]
[null,null,null,null,null,null,null,null,null,"2014 Program Application"]
[null,null,null,null,null,null,null,null,null,"Energy Efficiency - Demand Response"]
[]
["Section 1",null,null,null,null,null,null,null,null,"Customer Contact Information"]
[]
[]
["PG&E Customer Name",null,null,null,null,null,null,null,null,null,null,null,null,null,null,null,null,null,null,null,null,null,null,null,null,null,null,"Name of PG&E Local Gov't/Statewide Partnership, if applicable"]
[]
["Customer Contact Name",null,null,null,null,null,null,null,null,null,null,null,null,null,null,null,null,null,null,null,null,null,null,null,null,null,null,"Title"]
[]
["Contact Telephone Number",null,null,null,null,null,null,null,null,null,null,null,null,null,null,null,null,null,null,null,null,null,null,null,null,null,null,"Contact Fax Number",null,null,null,null,null,null,null,null,null,null,null,null,null,"E-Mail Address"]
[]
["Mailing Address",null,null,null,null,null,null,null,null,null,null,null,null,null,null,null,null,null,null,null,null,null,null,null,null,null,null,"City",null,null,null,null,null,null,null,null,null,null,null,null,null,"State",null,null,null,"Zip"]
[]
["Project Name/Description",null,null,null,null,null,null,null,null,null,null,null,null,null,null,null,null,null,null,null,null,null,null,null,null,null,null,null,null,null,null,"Using On-Bill Financing?"]
[]
["Project Site Address",null,null,null,null,null,null,null,null,null,null,null,null,null,null,null,null,null,null,null,null,null,null,null,null,null,null,"City",null,null,null,null,null,null,null,null,null,null,null,null,null,"State",null,null,null,"Zip"]
["Estimated Project Installation/Completion Date (required)"]
["*For multiple site applications, enter identifier for each site and PG&E Service ID number (not Account Number) on the savings summary sheet."]
[]
["Project Site ID Number*",null,null,null,null,null,null,null,null,null,null,null,null,null,null,null,null,null,null,null,null,null,null,null,null,null,null,"Electric Service ID Number",null,null,null,null,null,null,null,null,null,null,null,null,null,"Gas Service ID Number"]
[]
["Facility Description/Type",null,null,null,null,null,null,null,null,null,null,null,null,null,null,null,null,null,null,null,null,null,null,null,null,null,null,"Years since built/lastmajor renovation",null,null,null,null,null,null,null,null,null,null,null,null,null,"Total Sq. Ft. of Facility"]
["Customer Type:",null,null,null,null,null,null,null,null,null,null,null,"Industrial",null,null,null,null,null,null,null,null,"Commerical",null,null,null,null,null,null,null,null,null,null,"Agricultural"]
["Section 2",null,null,null,null,null,null,null,null,"Project Sponsor Information (if applicable)"]
[]
["Business Name of Project Sponsor"]
[]
["Mailing Address",null,null,null,null,null,null,null,null,null,null,null,null,null,null,null,null,null,null,null,null,null,null,null,null,null,null,"City ",null,null,null,null,null,null,null,null,null,null,null,null,null,null,"State",null,null,null,null,null,"Zip"]
[]
["Project Sponsor Contact Name",null,null,null,null,null,null,null,null,null,null,null,null,null,null,null,null,null,null,null,null,null,null,null,null,null,null,"Title"]
[]
["Contact Telephone Number",null,null,null,null,null,null,null,null,null,null,null,null,null,null,null,null,"Contact Fax Number",null,null,null,null,null,null,null,null,null,null,null,null,null,null,null,null,null,null,"E-Mail Address"]
["Section 3",null,null,null,null,null,null,null,null,"Payee Information"]
["Select only ONE for each area below:"]
["Payee",null,null,null,null,null,null,null,null,null,null,null,"Tax Identification Type",null,null,null,null,null,null,null,null,null,null,null,null,null,null,null,null,null,null,null,null,null,null,null,null,"Tax Status"]
[null,null,"Owner",null,null,null,null,"Vendor",null,null,null,null,null,"Employer ID Number (EIN)",null,null,null,null,null,null,null,null,null,null,null,null,null,null,null,null,null,null,null,null,null,null,"Corporation",null,null,null,null,null,"Individual",null,null,null,null,null,null,null,null,null,null,null,null,null,0,0]
[null,null,"Leasee",null,null,null,null,null,null,null,null,null,null,"Federal Tax ID",null,null,null,null,null,null,null,"SSN",null,null,null,null,null,null,null,null,null,null,null,null,null,null,"Non-Corp",null,null,null,null,null,"Exempt"]
[null,null,null,null,null,null,null,null,null,null,null,null,null,null,null,null,null,null,null,null,null,null,null,null,null,"Tax Identification Number",null,null,null,null,null,null,null,null,null,null,null,null,null,null,null,null,null,null,null,null,"Exempt Reason"]
[]
["Payee",null,null,null,null,null,null,null,null,null,null,null,null,null,null,null,null,null,null,null,null,null,null,null,null,null,null,null,null,null,null,null,"Telephone Number",null,null,null,null,null,null,null,null,null,null,"Fax Number"]
[]
["Mailing Address",null,null,null,null,null,null,null,null,null,null,null,null,null,null,null,null,null,null,null,null,null,null,null,null,null,null,"City",null,null,null,null,null,null,null,null,null,null,null,null,null,"State",null,null,null,"Zip"]
[]
["Contact Name",null,null,null,null,null,null,null,null,null,null,null,null,null,null,null,null,null,null,null,null,null,null,null,null,null,null,"Title",null,null,null,null,null,null,null,null,null,null,"E-Mail"]
[]
["Section 4",null,null,null,null,null,null,null,null,"Agreement",null,null,null,null,null,null,null,null,null,null,null,null,null,null,null,null,null,null,null,null,null,null,null,null,null,null,null,null,"For Utility Use Only"]
[]
["I have read and agree to the Terms and Conditions and Manual (link below)"]
["http://www.pge.com/mybusiness/energysavingsrebates/rebatesincentives/ief/.",null,null,null,null,null,null,null,null,null,null,null,null,null,null,null,null,null,null,null,null,null,null,null,null,null,null,null,null,null,null,null,null,null,null,null,null,null,null,"PO IM ID",null,null,null,null,null,"Implementation Mgr Name"]
["I certify the information I have provided on this application and attachment(s) is true and correct."]
[null,null,null,null,null,null,null,null,null,null,null,null,null,null,null,null,null,null,null,null,null,null,null,null,null,null,null,null,null,null,null,null,null,null,null,null,null,null,null,"ES&S Rep ID",null,null,null,null,null,"ES&S Rep Name"]
["Customer Contact Name (Please Print)",null,null,null,null,null,null,null,null,null,null,null,null,null,null,null,null,null,null,null,null,null,null,null,null,null,null,null,null,"Title"]
[null,null,null,null,null,null,null,null,null,null,null,null,null,null,null,null,null,null,null,null,null,null,null,null,null,null,null,null,null,null,null,null,null,null,null,null,null,null,null,null,null,null,"_",null,null,null,"-"]
["Customer Signature",null,null,null,null,null,null,null,null,null,null,null,null,null,null,null,null,null,null,null,null,null,null,null,null,null,null,null,null,"Date",null,null,null,null,null,null,null,null,null,"Rep Phone #"]
[]
["Project Sponsor Name  (Leave blank if the Customer is the Project Sponsor.) ",null,null,null,null,null,null,null,null,null,null,null,null,null,null,null,null,null,null,null,null,null,null,null,null,null,null,null,null,"Title"]
[null,null,null,null,null,null,null,null,null,null,null,null,null,null,null,null,null,null,null,null,null,null,null,null,null,null,null,null,null,null,null,null,null,null,null,null,null,null,null,"Service Code",null,null,null,null,null,null,"Date Received"]
["Project Sponsor Signature (Leave blank if the Customer is the Project Sponsor.) ",null,null,null,null,null,null,null,null,null,null,null,null,null,null,null,null,null,null,null,null,null,null,null,null,null,null,null,null,"Date",null,null,null,null,null,null,null,null,null,"LIA measure?",null,null,null,null,null,null,"Y",null,"N"]
["See Terms and Conditions on the Following Pages",null,null,null,null,null,null,null,null,null,null,null,null,null,null,null,null,null,null,null,null,null,null,null,null,null,null,null,null,null,null,null,null,null,null,null,null,null,null,"If Yes, Auditor's name"]
[]
[null,null,null,null,null,null,null,null,null,null,null,null,null,null,null,"FOR PG&E USE ONLY: Project No. ",null,null,null,null,null,null,null,null,null,null,null,null,null,null,null,null,null,null,null,null,null,null,"Application No. "]

{"sheet":"Retrofit","index":3,"n_rows":238,"n_cols":110,"rows_kept":238,"cut":false,"hidden":false,"merged":[[16,49,16,71],[17,49,17,71],[18,49,18,71],[19,49,19,71],[14,49,15,71],[14,30,15,48],[0,23,0,49],[29,0,29,3],[36,16,36,28],[35,16,35,28],[29,49,29,51],[29,57,29,63],[29,52,29,56],[29,64,29,72],[35,10,35,12],[33,0,33,3],[3,46,3,48],[2,48,2,81],[12,3,12,16],[14,0,14,19],[14,20,15,29],[3,54,3,57],[30,0,30,3],[31,0,31,3],[33,4,33,6],[33,7,33,8],[33,12,33,13],[33,9,33,11],[30,4,30,6],[30,7,30,8],[31,4,31,6],[31,7,31,8],[32,4,32,6],[32,7,32,8],[37,10,37,12],[29,30,29,33],[29,34,29,38],[30,30,30,33],[30,34,30,38],[31,30,31,33],[31,34,31,38],[32,30,32,33],[32,34,32,38],[33,30,33,33],[33,34,33,38],[33,20,33,23],[31,14,31,19],[32,14,32,19],[29,20,29,23],[29,14,29,19],[30,9,30,11],[30,12,30,13],[31,12,31,13],[31,9,31,11],[32,12,32,13],[32,9,32,11],[32,20,32,23],[33,14,33,19],[25,73,28,81],[32,52,32,56],[31,57,31,63],[31,64,31,72],[31,73,31,81],[25,39,28,48],[29,39,29,48],[33,28,33,29],[33,24,33,27],[29,73,29,81],[30,49,30,51],[30,52,30,56],[31,49,31,51],[33,39,33,48],[30,57,30,63],[32,57,32,63],[33,49,33,51],[33,52,33,56],[2,6,2,37],[17,1,17,19],[18,1,18,19],[30,28,30,29],[29,28,29,29],[29,24,29,27],[31,28,31,29],[31,24,31,27],[32,28,32,29],[32,24,32,27],[32,0,32,3],[29,12,29,13],[29,9,29,11],[25,24,28,29],[25,30,28,38],[30,24,30,27],[29,7,29,8],[29,4,29,6],[30,20,30,23],[30,14,30,19],[31,20,31,23],[50,40,50,54],[17,72,17,81],[18,72,18,81],[14,72,15,81],[24,0,24,48],[15,1,15,19],[16,72,16,81],[16,1,16,19],[19,72,19,81],[19,1,19,19],[24,49,24,81],[25,0,28,3],[25,4,28,8],[25,9,28,13],[25,14,28,23],[25,49,28,51],[25,52,28,56],[25,57,28,63],[25,64,28,72],[33,64,33,72],[35,71,35,78],[32,64,32,72],[32,73,32,81],[33,73,33,81],[38,41,38,53],[35,41,35,53],[30,39,30,48],[31,39,31,48],[32,39,32,48],[30,64,30,72],[37,41,37,53],[47,8,47,11],[47,5,47,7],[40,0,41,81],[42,0,42,81],[43,0,43,19],[47,40,49,81],[36,41,36,53],[47,12,47,15],[47,16,47,22],[36,59,36,81],[46,53,46,60],[43,51,43,55],[39,41,39,53],[33,57,33,63],[30,73,30,81],[31,52,31,56],[32,49,32,51]]}
[null,null,null,null,null,"®",null,null,null,null,null,null,null,null,null,null,null,null,null,null,null,null,null,"Pacific Gas and Electric Company \nCustomized Retrofit and Automated Demand Response Incentive Program"]
[null,null,null,null,null,null,null,null,null,null,null,null,null,null,null,null,null,null,null,null,null,null,null,null,"2014 Customized Retrofit Savings Summary"]
[null,null,null,null,null,"Project Name",{"$f":"'Incentive Application'!A16","v":0},null,null,null,null,null,null,null,null,null,null,null,null,null,null,null,null,null,null,null,null,null,null,null,null,null,null,null,null,null,null,null,null,null,null,null,null,null,null,null,null,"Project Sponsor",{"$f":"'Incentive Application'!A32","v":0}]
[null,null,null,null,null,null,null,null,null,null,null,null,null,null,null,null,null,null,null,null,null,null,null,null,null,null,null,null,null,null,null,null,null,null,null,null,null,"Customer Type:",null,null,null,null,null,null,null,null,{"$f":"'Incentive Application'!J26","v":0},null,null,"Industrial",null,{"$f":"'Incentive Application'!S26","v":0},"Commerical",null,{"$f":"'Incentive Application'!AC26","v":0},null,null,null,"Agricultural"]
["Section 4",null,null,null,null,null,null,null,null,"Energy Efficiency Measure Information"]
["If you need assistance completing this application, please contact your PG&E account representative."]
["1. Indicate the Site Name and Site Service ID Number."]
["2. Indicate the measure type by checking Basic Lighting, Targeted Lighting, Basic Non-Lighting, or Targeted Non-Lighting."]
["3. Select the Measure Type. Choose ER if the measure is to be claimed as Early Retirement (e.g. if the equipment being replaced is still operational and capable of being operated for one additional year). Choose ROB if the measure is to be claimed as"]
[" Replace on Burnout (e.g. if the equipment being replaced is not operational, or incapable of being operated for one additional year). Choose REA if the measure is to be claimed as Retrofit Add-On (e.g. if this is a controls measure or a mechanism added to existing equipment resulting in increased efficiency)."]
[" Choose NEW if the measure is to be claimed as New Load (e.g. Installation of new, high-efficiency equipment to meet expanded process needs or new production loads, that does not involve. Choose NR if the measure is to be claimed as Normal Replacement (This is like ROB, except the equipment is still working)"]
[]
[null,null,null,"Enter data in blue cells"]
[]
["Calculated Measures",null,null,null,null,null,null,null,null,null,null,null,null,null,null,null,null,null,null,null,"Technology Type",null,null,null,null,null,null,null,null,null,"Measure Type",null,null,null,null,null,null,null,null,null,null,null,null,null,null,null,null,null,null,"Description of the Proposed Measure",null,null,null,null,null,null,null,null,null,null,null,null,null,null,null,null,null,null,null,null,null,null,"Retrofit Cost ($)*"]
["#","Site Name (and site Service ID#, if multiple sites)"]
[1]
[2]
[3]
[4]
[]
["Section 5",null,null,null,null,null,null,null,null,"Energy Efficiency Savings and Incentive Summary"]
["ENERGY/PERMANENT ON-PEAK DEMAND MEASURE DETAILS (Attach calculation sheets to this form and enter the energy savings and demand reduction parameters for Calculated Saving Measure below)"]
[]
["Energy Savings",null,null,null,null,null,null,null,null,null,null,null,null,null,null,null,null,null,null,null,null,null,null,null,null,null,null,null,null,null,null,null,null,null,null,null,null,null,null,null,null,null,null,null,null,null,null,null,null,"Permanent On-Peak Demand Reduction",null,null,null,null,null,null,null,null,null,null,null,null,null,null,null,null,null,null,null,null,null,null,null,null,null,null,null,null,null,null,null,null,null,null,null,null,null,null,null,null,null,null,null,null,"measure type is \"6\" to make sure no incentive rate is selected initially",null,null,null,null,null,null,null,null,null,null,null,null,null,"CR","SP"]
["Calculated\nMeasure\nfrom # above",null,null,null,"Existing Equipment Baseline Usage",null,null,null,null,"Code/Standard Equip Baseline Usage\n(leave blank if unknown)",null,null,null,null,"Installed Usage",null,null,null,null,null,null,null,null,null,"Energy Savings",null,null,null,null,null,"Incentive\nRate",null,null,null,null,null,null,null,null,"Energy\nIncentive ($)",null,null,null,null,null,null,null,null,null,"Existing Equipment Baseline On-Peak Demand (kW)",null,null,"Code/Standard Equipment Baseline On-Peak Demand (kW)",null,null,null,null,"Installed\nOn-Peak\nDemand (kW)",null,null,null,null,null,null,"On-Peak\nDemand\nReduction (kW)",null,null,null,null,null,null,null,null,"Peak kW\nIncentive ($)",null,null,null,null,null,null,null,null,null,null,null,null,null,null,null,null,null,null,null,"Measure","Tech Type","incentive rate","measure cost cap","measure cost","gross incentive","cost adj","final incentive",null,null,null,null,null,"CR","SP","cost cap","cost cap"]
[null,null,null,null,null,null,null,null,null,null,null,null,null,null,null,null,null,null,null,null,null,null,null,null,null,null,null,null,null,null,null,null,null,null,null,null,null,null,null,null,null,null,null,null,null,null,null,null,null,null,null,null,null,null,null,null,null,null,null,null,null,null,null,null,null,null,null,null,null,null,null,null,null,null,null,null,null,null,null,null,null,null,null,null,null,null,null,null,null,null,null,null,null,1,0,{"$f":"IF(CQ27=0,0,VLOOKUP(CQ27,$DB$27:$DD$32,2))","v":0},{"$f":"IF(CQ27=0,0,VLOOKUP(CQ27,$DB$27:$DF$31,4))","v":0},{"$f":"BU17","v":0},{"$f":"AN31+BV31","v":0},{"$f":"IF(CU27-CS27*CT27>0,CU27-CS27*CT27,0)","v":0},{"$f":"CU27-CV27","v":0},null,null,null,"Basic Lighting",1,0.03,0.24,0.5,0.5]
[null,null,null,null,null,null,null,null,null,null,null,null,null,null,null,null,null,null,null,null,null,null,null,null,null,null,null,null,null,null,null,null,null,null,null,null,null,null,null,null,null,null,null,null,null,null,null,null,null,null,null,null,null,null,null,null,null,null,null,null,null,null,null,null,null,null,null,null,null,null,null,null,null,null,null,null,null,null,null,null,null,null,null,null,null,null,null,null,null,null,null,null,null,2,0,{"$f":"IF(CQ28=0,0,VLOOKUP(CQ28,$DB$27:$DD$32,2))","v":0},{"$f":"IF(CQ28=0,0,VLOOKUP(CQ28,$DB$27:$DF$31,4))","v":0},{"$f":"BU18","v":0},{"$f":"AN32+BV32","v":0},{"$f":"IF(CU28-CS28*CT28>0,CU28-CS28*CT28,0)","v":0},{"$f":"CU28-CV28","v":0},null,null,null,"Basic Non-Lighting",2,0.08,0.24,0.5,0.8]
[null,null,null,null,null,null,null,null,null,null,null,null,null,null,null,null,null,null,null,null,null,null,null,null,null,null,null,null,null,null,null,null,null,null,null,null,null,null,null,null,null,null,null,null,null,null,null,null,null,null,null,null,null,null,null,null,null,null,null,null,null,null,null,null,null,null,null,null,null,null,null,null,null,null,null,null,null,null,null,null,null,null,null,null,null,null,null,null,null,null,null,null,null,3,0,{"$f":"IF(CQ29=0,0,VLOOKUP(CQ29,$DB$27:$DD$32,2))","v":0},{"$f":"IF(CQ29=0,0,VLOOKUP(CQ29,$DB$27:$DF$31,4))","v":0},{"$f":"BU19","v":0},{"$f":"AN33+BV33","v":0},{"$f":"IF(CU29-CS29*CT29>0,CU29-CS29*CT29,0)","v":0},{"$f":"CU29-CV29","v":0},null,null,null,"Targeted Lighting",3,0.08,0.24,0.5,0.8]
[null,null,null,null,"kWh/yr",null,null,"therm/yr",null,"kWh/yr",null,null,"therm/yr",null,"kWh/yr",null,null,null,null,null,"therm/yr",null,null,null,"kWh/yr",null,null,null,"therm/yr",null,"$/kWh",null,null,null,"$/therm",null,null,null,null,null,null,null,null,null,null,null,null,null,null,null,null,null,null,null,null,null,null,null,null,null,null,null,null,null,null,null,null,null,null,null,null,null,null,null,null,null,null,null,null,null,null,null,null,null,null,null,null,null,null,null,null,null,null,4,0,{"$f":"IF(CQ30=0,0,VLOOKUP(CQ30,$DB$27:$DD$32,2))","v":0},{"$f":"IF(CQ30=0,0,VLOOKUP(CQ30,$DB$27:$DF$31,4))","v":0},{"$f":"BU20","v":0},{"$f":"AN34+BV34","v":0},{"$f":"IF(CU30-CS30*CT30>0,CU30-CS30*CT30,0)","v":0},{"$f":"CU30-CV30","v":0},null,null,null,"Targeted Non-Lighting",4,0.15,0.24,0.5,0.8]
["1",null,null,null,null,null,null,null,null,null,null,null,null,null,null,null,null,null,null,null,null,null,null,null,{"$f":"IF(OR(CQ42=1,CQ42=3),E31-O31,IF(OR(CQ42=2,CQ42=4,CQ42=5),J31-O31,0))","v":0},null,null,null,{"$f":"IF(OR(CQ42=1,CQ42=3),H31-U31,IF(OR(CQ42=2,CQ42=4,CQ42=5),M31-U31,0))","v":0},null,{"$f":"CR27","v":0},null,null,null,{"$f":"IF(AND(H31=\"\",M31=\"\",U31=\"\"),\"\",1)","v":""},null,null,null,null,{"$f":"(Y31*AE31)+AC31","v":0},null,null,null,null,null,null,null,null,null,null,null,null,null,null,null,null,null,null,null,null,null,null,null,null,{"$f":"IF(OR(CQ42=1,CQ42=3),AX31-BF31,IF(OR(CQ42=2,CQ42=4,CQ42=5),BA31-BF31,0))","v":0},null,null,null,null,null,null,null,null,{"$f":"BM31*150","v":0},null,null,null,null,null,null,null,null,null,{"$f":"CQ42","v":0},null,null,null,null,null,null,null,null,null,null,null,null,null,{"$f":"SUM(CT27:CT30)","v":0},{"$f":"SUM(CU27:CU30)","v":0},{"$f":"SUM(CV27:CV30)","v":0},{"$f":"SUM(CW27:CW30)","v":0},null,null,null,"Gas",5,1,1,0.5,0.8]
[2,null,null,null,null,null,null,null,null,null,null,null,null,null,null,null,null,null,null,null,null,null,null,null,{"$f":"IF(OR(CQ43=1,CQ43=3),E32-O32,IF(OR(CQ43=2,CQ43=4,CQ43=5),J32-O32,0))","v":0},null,null,null,{"$f":"IF(OR(CQ43=1,CQ43=3),H32-U32,IF(OR(CQ43=2,CQ43=4,CQ43=5),M32-U32,0))","v":0},null,{"$f":"CR28","v":0},null,null,null,{"$f":"IF(AND(H32=\"\",M32=\"\",U32=\"\"),\"\",1)","v":""},null,null,null,null,{"$f":"(Y32*AE32)+AC32","v":0},null,null,null,null,null,null,null,null,null,null,null,null,null,null,null,null,null,null,null,null,null,null,null,null,{"$f":"IF(OR(CQ43=1,CQ43=3),AX32-BF32,IF(OR(CQ43=2,CQ43=4,CQ43=5),BA32-BF32,0))","v":0},null,null,null,null,null,null,null,null,{"$f":"BM32*150","v":0},null,null,null,null,null,null,null,null,null,{"$f":"CQ43","v":0},null,null,null,null,null,null,null,null,null,null,null,null,null,null,null,null,null,null,null,null,null,6]
[3,null,null,null,null,null,null,null,null,null,null,null,null,null,null,null,null,null,null,null,null,null,null,null,0,null,null,null,0,null,{"$f":"CR29","v":0},null,null,null,"",null,null,null,null,0,null,null,null,null,null,null,null,null,null,null,null,null,null,null,null,null,null,null,null,null,null,null,null,null,{"$f":"IF(OR(CQ44=1,CQ44=3),AX33-BF33,IF(OR(CQ44=2,CQ44=4,CQ44=5),BA33-BF33,0))","v":0},null,null,null,null,null,null,null,null,{"$f":"BM33*150","v":0},null,null,null,null,null,null,null,null,null,{"$f":"CQ44","v":0}]
[4,null,null,null,null,null,null,null,null,null,null,null,null,null,null,null,null,null,null,null,null,null,null,null,0,null,null,null,0,null,{"$f":"CR30","v":0},null,null,null,"",null,null,null,null,0,null,null,null,null,null,null,null,null,null,null,null,null,null,null,null,null,null,null,null,null,null,null,null,null,{"$f":"IF(OR(CQ45=1,CQ45=3),AX34-BF34,IF(OR(CQ45=2,CQ45=4,CQ45=5),BA34-BF34,0))","v":0},null,null,null,null,null,null,null,null,{"$f":"BM34*150","v":0},null,null,null,null,null,null,null,null,null,{"$f":"CQ45","v":0}]
[]
["Estimated Energy Savings Totals",null,null,null,null,null,null,null,null,null,{"$f":"CS37","v":0},null,null,"kWh",null,null,null,null,null,null,null,null,null,null,null,null,null,null,null,null,null,null,null,null,null,null,null,null,null,null,"Total Retrofit Cost ($)",{"$f":"SUM(BU17:CD20)","v":0},null,null,null,null,null,null,null,null,null,null,null,null,null,null,null,null,null,null,null,null,null,null,null,null,null,null,null,null,"On-Peak Demand Reduction",{"$f":"SUM(BM31:BU34)","v":0},null,null,null,null,null,null,null,"kW"]
[null,null,null,null,null,null,null,null,null,null,null,null,null,null,null,null,null,null,null,null,null,null,null,null,null,null,null,null,null,null,null,null,null,null,null,null,null,null,null,null,"Estimated Subtotal Incentive ($)",{"$f":"SUM(AN31:AW34)+SUM(BV31:CD34)","v":0},null,null,null,null,null,null,null,null,null,null,null,null,null,null,null,null,null,"CUSTOMIZED RETROFIT INCENTIVE RATES",null,null,null,null,null,null,null,null,null,null,null,null,null,null,null,null,null,null,null,null,null,null,null,null,null,null,null,null,null,null,null,null,null,"Gas Savings  ",{"$f":"SUM(AC31:AD34)","v":0},"Electric",{"$f":"SUM(Y31:AB34)","v":0}]
[null,null,null,null,null,null,null,null,null,null,{"$f":"CQ37","v":0},null,null,"therms",null,null,null,null,null,null,null,null,null,null,null,null,null,null,null,null,null,null,null,null,null,null,null,null,null,null,"Retrofit Cost Adjustment ($)",{"$f":"IF(AP37-AP36*0.5>0,AP37-AP36*0.5,0)","v":0},null,null,null,null,null,null,null,null,null,null,null,null,null,null,null,null,null,"Basic Lighting",null,null,null,null,null,"$0.03/kWh",null,null,null,null,null,"Basic Non-Lighting",null,null,null,null,null,null,null,null,null,"$0.08/kWh",null,null,null,null,null,null,null,null,null,null,null,{"$f":"IF((AP36*0.5)>SUM(AO31:AW34)+SUM(BV31:CD34),0,(SUM(AO31:AW34)+SUM(BV31:CB34)-(AP36*0.5)))","v":0}]
[null,null,null,null,null,null,null,null,null,null,null,null,null,null,null,null,null,null,null,null,null,null,null,null,null,null,null,null,null,null,null,null,null,null,null,null,null,null,null,null,"Bonus Incentive ($)",{"$f":"IF(AND(CT43,CT44),CU43+CU44,IF(CT43,CU43,IF(CT44, CU44,\"\")))","v":""},null,null,null,null,null,null,null,null,null,null,null,null,null,null,null,null,null,"Targeted Lighting",null,null,null,null,null,"$0.08/kWh",null,null,null,null,null,"Targeted Non-Lighting",null,null,null,null,null,null,null,null,null,"$0.15/kWh"]
[null,null,null,null,null,null,null,null,null,null,null,null,null,null,null,null,null,null,null,null,null,null,null,null,null,null,null,null,null,null,null,null,null,null,null,null,null,null,null,null,"Estimated Total Incentive ($)",{"$f":"IF(AP39=\"\",AP37-AP38,(AP37-AP38)+AP39)","v":0},null,null,null,null,null,null,null,null,null,null,null,null,null,null,null,null,null,"Natural Gas",null,null,null,null,null,"$1.00/therm",null,null,null,null,null,null,null,"All",null,null,null,null,null,null,null,"$150.00/peak kW",null,"v1.2 7/9/14"]
["*The total retrofit cost includes, but is not limited to, audits, design, engineering, construction, materials, permits, fees, overhead and labor. Written forms must have separate measure entries for each measure type included in the project. The total incentive cannot exceed 50% of the total retrofit cost and the total site incentive cannot exceed the Project Site Cap for single site applications. An adjustment may be made after review of measure costs. Please provide project invoices upon project completion. See 2014 Statewide Customized Offering Manual for details.",null,null,null,null,null,null,null,null,null,null,null,null,null,null,null,null,null,null,null,null,null,null,null,null,null,null,null,null,null,null,null,null,null,null,null,null,null,null,null,null,null,null,null,null,null,null,null,null,null,null,null,null,null,null,null,null,null,null,null,null,null,null,null,null,null,null,null,null,null,null,null,null,null,null,null,null,null,null,null,null,null,null,null,null,null,null,null,null,null,null,null,null,"Measure","Meas Type",null,"Bonus","Bonus Type","Bonus incentive"]
[null,null,null,null,null,null,null,null,null,null,null,null,null,null,null,null,null,null,null,null,null,null,null,null,null,null,null,null,null,null,null,null,null,null,null,null,null,null,null,null,null,null,null,null,null,null,null,null,null,null,null,null,null,null,null,null,null,null,null,null,null,null,null,null,null,null,null,null,null,null,null,null,null,null,null,null,null,null,null,null,null,null,null,null,null,null,null,null,null,null,null,null,null,null,0]
["\"PG&E\" refers to Pacific Gas and Electric Company, a subsidiary of PG&E Corporation. ©2014 Pacific Gas and Electric Company. All rights reserved. These offerings are funded by California utility customers and administered by PG&E under the auspices of the California Public Utilities Commission.\nPG&E prints its materials with soy based inks on recycled paper.",null,null,null,null,null,null,null,null,null,null,null,null,null,null,null,null,null,null,null,null,null,null,null,null,null,null,null,null,null,null,null,null,null,null,null,null,null,null,null,null,null,null,null,null,null,null,null,null,null,null,null,null,null,null,null,null,null,null,null,null,null,null,null,null,null,null,null,null,null,null,null,null,null,null,null,null,null,null,null,null,null,null,null,null,null,null,null,null,null,null,null,null,null,0,null,"Comprehensiveness Bonus",false,{"$f":"IF(CT43,MIN(0.2*((SUM(BV31:CD34)+SUM(AN31:AW34))),25000),\"\")","v":""}]
["January 2014 CTM-1209-345",null,null,null,null,null,null,null,null,null,null,null,null,null,null,null,null,null,null,null,null,null,null,null,null,null,null,null,null,null,null,null,null,null,null,null,null,null,null,null,null,null,null,null,null,null,null,null,null,null,null,null,null,null,null,null,null,null,null,null,null,null,null,null,null,null,null,null,null,null,null,null,null,null,null,null,null,null,null,null,null,null,null,null,null,null,null,null,null,null,null,null,null,null,0,null," Targeted Substation Bonus",false,{"$f":"IF(CT44,150*SUM(BM31:BU34),\"\")","v":""}]
[{"$f":"CF40","v":"v1.2 7/9/14"},null,null,null,null,null,null,null,null,null,null,null,null,null,null,null,null,null,null,null,null,null,null,null,null,null,null,null,null,null,null,null,null,null,null,null,null,null,null,null,null,null,null,null,null,null,null,null,null,null,null,null,null,null,null,null,null,null,null,null,null,null,null,null,null,null,null,null,null,null,null,null,null,null,null,null,null,null,null,null,null,null,null,null,null,null,null,null,null,null,null,null,null,null,0]
[]
[]
[]
[]
[]
[]
[]
[]
[]
[]
[]
[]
[]
[]
[]
[]
[]
[]
[]
[]
[]
[]
[]
[]
[]
[]
[]
[]
[]
[]
[]
[]
[]
[]
[]
[]
[]
[]
[]
[]
[]
[]
[]
[]
[]
[]
[]
[]
[]
[]
[]
[]
[]
[]
[]
[]
[]
[]
[]
[]
[]
[]
[]
[]
[]
[]
[]
[]
[]
[]
[]
[]
[]
[]
[]
[]
[]
[]
[]
[]
[]
[]
[]
[]
[]
[]
[]
[]
[]
[]
[]
[]
[]
[]
[]
[]
[]
[]
[]
[]
[]
[]
[]
[]
[]
[]
[]
[]
[]
[]
[]
[]
[]
[]
[]
[]
[]
[]
[]
[]
[]
[]
[]
[]
[]
[]
[]
[]
[]
[]
[]
[]
[]
[]
[]
[]
[]
[]
[]
[]
[]
[]
[]
[]
[]
[]
[]
[]
[]
[]
[]
[]
[]
[]
[]
[]
[]
[]
[]
[]
[]
[]
[]
[]
[]
[]
[]
[]
[]
[]
[]
[]
[]
[]
[]
[]
[]
[]
[]
[]
[]
[]
[]
[]
[]
[]
[]
[]
[]
[]
[]
[]
[null,null,null,null,null,null,null,null,null,null,null,null,null,null,null,null,null,null,null,null,null,null,null,null,null,null,null,null,null,null,null,null,null,null,null,null,null,null,null,null,null,null,null,null,null,null,null,null,null,null,null,null,null,null,null,null,null,null,null,null,null,null,null,null,null,null,null,null,null,null,null,null,null,null,null,null,null,null,null,null,null,null,null,null,null,null,null,null,null,null,null,null,null,null,null,null,null,null,null,null,null,2]

{"sheet":"ADR_#4","index":4,"n_rows":29,"n_cols":102,"rows_kept":29,"cut":false,"hidden":false,"merged":[[5,76,7,95],[10,77,10,80],[10,81,10,91],[2,79,2,95],[3,49,3,52],[3,59,3,62],[3,70,3,73],[8,44,8,51],[2,45,2,66],[9,67,9,75],[10,67,10,75],[10,59,10,66],[10,52,10,57],[9,59,9,66],[9,52,9,57],[9,44,9,51],[10,44,10,51],[11,44,11,51],[11,52,11,57],[11,67,11,75],[11,77,11,80],[5,67,7,75],[5,59,7,66],[8,0,8,2],[8,67,8,75],[8,52,8,57],[8,11,8,18],[7,39,7,43],[5,44,7,51],[5,52,7,57],[8,3,8,10],[8,59,8,66],[5,19,7,26],[8,19,8,26],[8,27,8,38],[5,39,5,43],[6,39,6,43],[2,8,2,38],[11,0,11,2],[10,0,10,2],[11,3,11,10],[9,0,9,2],[5,3,7,10],[5,0,7,2],[9,3,9,10],[10,3,10,10],[5,27,7,38],[5,11,7,18],[3,0,3,15],[10,27,10,38],[10,19,10,26],[10,11,10,18],[9,11,9,18],[9,27,9,38],[9,19,9,26],[9,39,9,43],[10,39,10,43],[8,39,8,43],[10,92,10,95],[8,76,8,80],[8,81,8,91],[8,92,8,95],[9,92,9,95],[9,77,9,80],[9,81,9,91],[12,44,12,51],[27,0,27,96],[12,77,12,80],[12,81,12,91],[18,89,18,94],[17,89,17,94],[16,89,16,94],[14,41,14,49],[15,88,15,93],[12,67,12,75],[12,52,12,57],[12,59,12,66],[12,39,12,43],[21,0,21,96],[22,0,22,96],[0,9,0,56],[23,0,23,96],[26,0,26,96],[29,0,29,12],[24,0,24,96],[25,0,25,96],[28,0,28,96],[11,92,11,95],[12,92,12,95],[11,11,11,18],[11,27,11,38],[11,19,11,26],[11,59,11,66],[11,39,11,43],[11,81,11,91],[20,0,20,96]]}
[null,null,null,null,null,null,null,"®",null,"Pacific Gas and Electric Company \nCustomized Retrofit and Automated Demand Response Incentive Program",null,null,null,null,null,null,null,null,null,null,null,null,null,null,null,null,null,null,null,null,null,null,null,null,null,null,null,null,null,null,null,null,null,null,null,null,null,null,null,null,null,null,null,null,null,null,null,null,null,null,null,null,null,null,null,null,null,null,null,null,null,null,null,null,null,null,null,null,null,null,null,null,null,null,null,null,null,null,null,null,null,null,null,null,null,null,null,null,0,0,null,0]
[null,null,null,null,null,null,null,null,null,"2014 Automated Demand Response Application Form: ADR Calculation Page",null,null,null,null,null,null,null,null,null,null,null,null,null,null,null,null,null,null,null,null,null,null,null,null,null,null,null,null,null,null,null,null,null,null,null,null,null,null,null,null,null,null,null,null,null,null,null,null,null,null,null,null,null,null,null,null,null,null,null,null,null,null,null,null,null,null,null,null,null,null,null,null,null,null,null,null,null,null,null,null,null,null,null,null,null,null,null,null,1,1,1,1]
[null,null,null,null,null,null,null,"Project Name",{"$f":"'Incentive Application'!A16","v":0},null,null,null,null,null,null,null,null,null,null,null,null,null,null,null,null,null,null,null,null,null,null,null,null,null,null,null,null,null,null,null,"Vendor",null,null,null,null,{"$f":"'Incentive Application'!A32","v":0},null,null,null,null,null,null,null,null,null,null,null,null,null,null,null,null,null,null,null,null,null,null,null,"Customer Contact",null,null,null,null,null,null,null,null,null,{"$f":"'Incentive Application'!A10","v":0},null,null,null,null,null,null,null,null,null,null,null,null,null,null,null,null,null,null,2,2,2,2]
["Enter data in blue boxes",null,null,null,null,null,null,null,null,null,null,null,null,null,null,null,null,null,null,null,null,null,null,null,null,null,null,null,null,null,null,null,null,null,null,null,null,null,null,null,"Customer Type:",null,null,null,null,null,null,null,null,{"$f":"'Incentive Application'!J26","v":0},null,null,null,"Industrial",null,null,null,null,null,{"$f":"'Incentive Application'!S26","v":0},null,null,null,"Commerical",null,null,null,null,null,null,{"$f":"'Incentive Application'!AC26","v":0},null,null,null,null,"Agricultural"]
["Automated Demand Response Dispatchable On-Peak Demand Reductions Measure Details"]
["Meas. #",null,null,"Baseline \nOn-Peak Demand (kW)",null,null,null,null,null,null,null,"Installed \nOn-Peak Demand (kW)",null,null,null,null,null,null,null,"Dispatchable \nOn-Peak Demand Reductions (kW)",null,null,null,null,null,null,null,"Technology Category ",null,null,null,null,null,null,null,null,null,null,null,"Incentive",null,null,null,null,"Gross\nIncentive\n($)",null,null,null,null,null,null,null,"Incremental ADR Project Cost ($)",null,null,null,null,null,null,"Incentive\nAdjustment*\n($) ",null,null,null,null,null,null,null,"Final Incentive† ($)",null,null,null,null,null,null,null,null,"Automated Demand Response \nOn-Peak Demand Reduction Rates"]
[null,null,null,null,null,null,null,null,null,null,null,null,null,null,null,null,null,null,null,null,null,null,null,null,null,null,null,null,null,null,null,null,null,null,null,null,null,null,null,"Rate"]
[null,null,null,null,null,null,null,null,null,null,null,null,null,null,null,null,null,null,null,null,null,null,null,null,null,null,null,null,null,null,null,null,null,null,null,null,null,null,null,"($/kW)"]
["1",null,null,null,null,null,null,null,null,null,null,null,null,null,null,null,null,null,null,{"$f":"D9-L9","v":0},null,null,null,null,null,null,null,null,null,null,null,null,null,null,null,null,null,null,null,{"$f":"IF(CU1=1,125,IF(CU1=2,200,IF(CU1=3,350,IF(CU1=4,400,0))))","v":0},null,null,null,null,{"$f":"T9*AN9","v":0},null,null,null,null,null,null,null,null,null,null,null,null,null,null,{"$f":"IF(AS9>1*BA9,AS9-1*BA9,0)","v":0},null,null,null,null,null,null,null,{"$f":"AS9-BH9","v":0},null,null,null,null,null,null,null,null,"Technology Category",null,null,null,null,"DR Program Enrollment Options",null,null,null,null,null,null,null,null,null,null,"Incentive\nRate"]
["2",null,null,null,null,null,null,null,null,null,null,null,null,null,null,null,null,null,null,{"$f":"D10-L10","v":0},null,null,null,null,null,null,null,null,null,null,null,null,null,null,null,null,null,null,null,{"$f":"IF(CV1=1,125,IF(CV1=2,200,IF(CV1=3,350,IF(CV1=4,400,0))))","v":0},null,null,null,null,{"$f":"T10*AN10","v":0},null,null,null,null,null,null,null,null,null,null,null,null,null,null,{"$f":"IF(AS10>1*BA10,AS10-1*BA10,0)","v":0},null,null,null,null,null,null,null,{"$f":"AS10-BH10","v":0},null,null,null,null,null,null,null,null,1,"Semi-Automated DR",null,null,null,"PDP, CBP, DBP, AMP, OBMC, or E-SLRP",null,null,null,null,null,null,null,null,null,null,125]
["3",null,null,null,null,null,null,null,null,null,null,null,null,null,null,null,null,null,null,{"$f":"D11-L11","v":0},null,null,null,null,null,null,null,null,null,null,null,null,null,null,null,null,null,null,null,{"$f":"IF(CW1=1,125,IF(CW1=2,200,IF(CW1=3,350,IF(CW1=4,400,0))))","v":0},null,null,null,null,{"$f":"T11*AN11","v":0},null,null,null,null,null,null,null,null,null,null,null,null,null,null,{"$f":"IF(AS11>1*BA11,AS11-1*BA11,0)","v":0},null,null,null,null,null,null,null,{"$f":"AS11-BH11","v":0},null,null,null,null,null,null,null,null,2,"Automated DR",null,null,null,"PDP, CBP, DBP, or AMP",null,null,null,null,null,null,null,null,null,null,200]
[4,null,null,null,null,null,null,null,null,null,null,null,null,null,null,null,null,null,null,{"$f":"D12-L12","v":0},null,null,null,null,null,null,null,null,null,null,null,null,null,null,null,null,null,null,null,{"$f":"IF(CX1=1,125,IF(CX1=2,200,IF(CX1=3,350,IF(CX1=4,400,0))))","v":0},null,null,null,null,{"$f":"T12*AN12","v":0},null,null,null,null,null,null,null,null,null,null,null,null,null,null,{"$f":"IF(AS12>1*BA12,AS12-1*BA12,0)","v":0},null,null,null,null,null,null,null,{"$f":"AS12-BH12","v":0},null,null,null,null,null,null,null,null,3,"Emerging & Advanced Technology HVAC",null,null,null,"PDP, CBP, DBP, or AMP",null,null,null,null,null,null,null,null,null,null,350]
[null,null,null,null,null,null,null,null,null,null,null,null,null,null,null,null,null,null,null,null,null,null,null,null,null,null,null,null,null,null,null,null,null,null,null,null,null,null,null,"TOTALS",null,null,null,null,{"$f":"SUM(AS9:AZ12)","v":0},null,null,null,null,null,null,null,{"$f":"SUM(BA9:BG12)","v":0},null,null,null,null,null,null,{"$f":"SUM(BH9:BO12)","v":0},null,null,null,null,null,null,null,{"$f":"SUM(BP9:BX12)","v":0},null,null,null,null,null,null,null,null,4,"Emerging & Advanced Technology Lighting",null,null,null,"PDP, CBP, DBP, or AMP",null,null,null,null,null,null,null,null,null,null,400]
[]
[]
[null,null,null,null,null,null,null,null,null,null,null,null,null,null,null,null,null,null,null,null,null,null,null,null,null,null,null,null,null,null,null,null,null,null,null,null,null,null,null,null,null,null,null,null,null,null,null,null,null,null,null,null,null,null,null,null,null,null,null,null,null,null,null,null,null,null,null,null,"Dispatchable Peak Demand Reduction",null,null,null,null,null,null,null,null,null,null,null,null,null,null,null,null,null,null,null,{"$f":"SUM(T9:AA12)","v":0},null,null,null,null,null,"kW"]
[null,null,null,null,null,null,null,null,null,null,null,null,null,null,null,null,null,null,null,null,null,null,null,null,null,null,null,null,null,null,null,null,null,null,null,null,null,null,null,null,null,null,null,null,null,null,null,null,null,null,null,null,null,null,null,null,null,null,null,null,null,null,null,null,null,null,null,null,"ADR Incremental Project Costs",null,null,null,null,null,null,null,null,null,null,null,null,null,null,null,null,null,null,null,"$",{"$f":"BA13","v":0}]
[null,null,null,null,null,null,null,null,null,null,null,null,null,null,null,null,null,null,null,null,null,null,null,null,null,null,null,null,null,null,null,null,null,null,null,null,null,null,null,null,null,null,null,null,null,null,null,null,null,null,null,null,null,null,null,null,null,null,null,null,null,null,null,null,null,null,null,null,"ADR Incentive: 60% Payment",null,null,null,null,null,null,null,null,null,null,null,null,null,null,null,null,null,null,null,"$",{"$f":"BP13*0.6","v":0}]
["DR",null,null,null,null,null,null,null,null,null,null,null,null,null,null,null,null,null,null,null,null,null,null,null,null,null,null,null,null,null,null,null,null,null,null,null,null,null,null,null,null,null,null,null,null,null,null,null,null,null,null,null,null,null,null,null,null,null,null,null,null,null,null,null,null,null,null,null,"ADR Incentive: 40% Perf. Payment ",null,null,null,null,null,null,null,null,null,null,null,null,null,null,null,null,null,null,null,"$",{"$f":"BP13*0.4","v":0}]
["AutoDR"]
[]
["* Incentive limited to 100% of incremental ADR Project Cost"]
["† Incentive Payments: Customers will receive 60% of the total program incentive after successful verification of equipment installation and testing of the committed DR strategies. The remaining 40% incentive will be paid upon verification of participant performance in the immediate following full DR season, which may be up to 12 months after the first payment. The second incentive payment is furthermore prorated based on a minimum performance of 60% of the verified kW curtailment averaged across all events called during the DR season."]
["Applicants Eligibility for ADR and Semi-DR: All non-residential customers who: 1) are not installing communicating thermostats project as a small or medium business, 2) receive electric service from PG&E, 3) have a PG&E interval meter installed at the site, 4) have an existing Utility service account with at least 12 months of billing and usage history, and 5) pays the PPP surcharge on the electric meter on which the demand response and energy efficient equipment is proposed. "]
["Technology Eligibility for Semi-ADR:  Technology must have previously demonstrated Demand Response capability and technology must either 1) have been evaluated in a independent assessment, or 2) be currently installed and available for evaluation by program staff at a site in PG&E territory or other location easily accessed by the program staff, and where both pre- and post-project conditions are documented or currently verifiable, and 3) must be under manufacturer warranty for a minimum of 3 years."]
["Technology Eligibility for ADR: 1) Technology must have previously demonstrated Demand Response capability.  2) Technology must have been evaluated in an independent assessment; or be currently installed and available for evaluation by program staff at a site in PG&E territory or other location easily accessed by the program staff, and where both pre- and post-project conditions are documented or currently verifiable. 3) Technology must be under Manufacturer warranty for a minimum of 3 years. 4) For 2012, Technology must be either OpenADR-1.0 compliant or OpenADR-2.0 Certified. 5) For applications received after January 1st, 2013, technologies must be OpenADR-2.0 certified.  "]
["Peak Demand Period - Weekdays 12:00 noon through 6:00 p.m. from May 1 through October 31 (excluding holidays)."]
["Per CPUC Decision D.12-04-045, this program begins September 17, 2012."]
["\"PG&E\" refers to Pacific Gas and Electric Company, a subsidiary of PG&E Corporation. ©2012 Pacific Gas and Electric Company. All rights reserved. These offerings are funded by California utility customers and administered by PG&E under the auspices of the California Public Utilities Commission.\nPG&E prints its materials with soy based inks on recycled paper."]